Workbook

Sheet Hinweise
A1: Geschäftsgang 2
A3: Voraussetzungen
A4: Um den Geschäftsgang buchen zu können, müssen Sie Kenntnisse über die folgenden Lehrninhalte haben:
A5: Buchungen auf Bestandskonten Buchungen auf Erfolgskonten
A9: Vorgehensweise
A10: 1. Wählen Sie die Tabelle "Grundbuch".
A12: 2. Buchen Sie die Geschäftsvorfälle
A13: entweder durch Direkteingabe in die entsprechenden Felder des Grundbuchs (Kontennummern und Beträge)
A14: oder durch Aufruf von Buchungsfenstern. (Klicken Sie dazu jeweils auf die Schaltfläche "Buchung" und beenden
A15: Sie die Eingabe mit "OK".)
A16: Die Kontennummern sind vierstellig anzugeben. (siehe Kontenplan). Bei zusammengesetzten Buchungssätzen
A17: sind die Buchungen nach der Höhe der Beträge geordnet vorzunehmen.
A19: 3. Sie können sich den Kontenplan mit Kontennummern jederzeit durch Klick auf den
A20: entsprechenden Button anzeigen lassen.
A22: 4. Die Richtigkeit Ihrer Buchungen wird bestätigt oder Sie werden auf
A23: Fehler hingewiesen. (Ohne Buchung werden Fehler angezeigt.)
A25: 5. Hauptbuch, Gewinn und Verlust und Bilanzbuch werden automatisch erstellt.

Sheet Grundbuch
A2: Geschäftsvorfälle
A3: Grundbuch
A6: 1. | B6: Einkauf von drei Monitoren gegen Bankscheck, | E6: 1200 | F6: =IF(AND(B10="0800",E10="2800"),"Die Konten sind richtig!","Mindestens ein Konto ist falsch!") -> Mindestens ein Konto ist falsch!
A7: Geschäftsvorfall | F7: =IF(AND(D10=E6,G10=E6),"Die Beträge sind richtig!","Mindestens ein Betrag ist falsch!") -> Mindestens ein Betrag ist falsch!
F8: =IF(AND(F6="Die Konten sind richtig!",F7="Die Beträge sind richtig!"),"Alles richtig!","Es sind noch Fehler vorhanden!") -> Es sind noch Fehler vorhanden!
B9: Soll | C9: Konto | D9: € | E9: Haben | F9: Konto | G9: €
A10: Buchungssatz | C10: =IF(B10="","",VLOOKUP(B10,Kontenplan!$A$4:$B$38,2)) ->  | F10: =IF(E10="","",VLOOKUP(E10,Kontenplan!$A$4:$B$38,2)) -> 
A13: 2. | B13: Banklastschrift für - Löhne | E13: 12500 | F13: =IF(AND(B17="6200",B18="6300",E17="2800"),"Die Konten sind richtig!","Mindestens ein Konto ist falsch!") -> Mindestens ein Konto ist falsch!
A14: Geschäftsvorfall | C14: - Gehälter | E14: 9200 | F14: =IF(AND(D17=E13,D18=E14,G17=E15),"Die Beträge sind richtig!","Mindestens ein Betrag ist falsch!") -> Mindestens ein Betrag ist falsch!
C15: Banklastschrift | E15: =SUM(E13:E14) -> 21700 | F15: =IF(AND(F13="Die Konten sind richtig!",F14="Die Beträge sind richtig!"),"Alles richtig!","Es sind noch Fehler vorhanden!") -> Es sind noch Fehler vorhanden!
B16: Soll | C16: Konto | D16: € | E16: Haben | F16: Konto | G16: €
A17: Buchungssatz | C17: =IF(B17="","",VLOOKUP(B17,Kontenplan!$A$4:$B$38,2)) ->  | F17: =IF(E17="","",VLOOKUP(E17,Kontenplan!$A$4:$B$38,2)) -> 
C18: =IF(B18="","",VLOOKUP(B18,Kontenplan!$A$4:$B$38,2)) -> 
A20: 3. | B20: Bankgutschrift für Provisionen, | E20: 1500 | F20: =IF(AND(B24="2800",E24="5410"),"Die Konten sind richtig!","Mindestens ein Konto ist falsch!") -> Mindestens ein Konto ist falsch!
A21: Geschäftsvorfall | F21: =IF(AND(D24=E20,G24=E20),"Die Beträge sind richtig!","Mindestens ein Betrag ist falsch!") -> Mindestens ein Betrag ist falsch!
F22: =IF(AND(F20="Die Konten sind richtig!",F21="Die Beträge sind richtig!"),"Alles richtig!","Es sind noch Fehler vorhanden!") -> Es sind noch Fehler vorhanden!
B23: Soll | C23: Konto | D23: € | E23: Haben | F23: Konto | G23: €
A24: Buchungssatz | C24: =IF(B24="","",VLOOKUP(B24,Kontenplan!$A$4:$B$38,2)) ->  | F24: =IF(E24="","",VLOOKUP(E24,Kontenplan!$A$4:$B$38,2)) -> 
A27: 4. | B27: Barzahlung für eine Kfz-Reparatur, | E27: 440 | F27: =IF(AND(B31="6160",E31="2880"),"Die Konten sind richtig!","Mindestens ein Konto ist falsch!") -> Mindestens ein Konto ist falsch!
A28: Geschäftsvorfall | F28: =IF(AND(D31=E27,G31=E27),"Die Beträge sind richtig!","Mindestens ein Betrag ist falsch!") -> Mindestens ein Betrag ist falsch!
F29: =IF(AND(F27="Die Konten sind richtig!",F28="Die Beträge sind richtig!"),"Alles richtig!","Es sind noch Fehler vorhanden!") -> Es sind noch Fehler vorhanden!
B30: Soll | C30: Konto | D30: € | E30: Haben | F30: Konto | G30: €
A31: Buchungssatz | C31: =IF(B31="","",VLOOKUP(B31,Kontenplan!$A$4:$B$38,2)) ->  | F31: =IF(E31="","",VLOOKUP(E31,Kontenplan!$A$4:$B$38,2)) -> 
A34: 5. | B34: Bareinkauf von Briefumschlägen, | E34: 240 | F34: =IF(AND(B38="6800",E38="2880"),"Die Konten sind richtig!","Mindestens ein Konto ist falsch!") -> Mindestens ein Konto ist falsch!
A35: Geschäftsvorfall | F35: =IF(AND(D38=E34,G38=E34),"Die Beträge sind richtig!","Mindestens ein Betrag ist falsch!") -> Mindestens ein Betrag ist falsch!
F36: =IF(AND(F34="Die Konten sind richtig!",F35="Die Beträge sind richtig!"),"Alles richtig!","Es sind noch Fehler vorhanden!") -> Es sind noch Fehler vorhanden!
B37: Soll | C37: Konto | D37: € | E37: Haben | F37: Konto | G37: €
A38: Buchungssatz | C38: =IF(B38="","",VLOOKUP(B38,Kontenplan!$A$4:$B$38,2)) ->  | F38: =IF(E38="","",VLOOKUP(E38,Kontenplan!$A$4:$B$38,2)) -> 
A41: 6. | B41: Die Bank belastet uns mit Zinsen, | E41: 160 | F41: =IF(AND(B45="7510",E45="2800"),"Die Konten sind richtig!","Mindestens ein Konto ist falsch!") -> Mindestens ein Konto ist falsch!
A42: Geschäftsvorfall | F42: =IF(AND(D45=E41,G45=E41),"Die Beträge sind richtig!","Mindestens ein Betrag ist falsch!") -> Mindestens ein Betrag ist falsch!
F43: =IF(AND(F41="Die Konten sind richtig!",F42="Die Beträge sind richtig!"),"Alles richtig!","Es sind noch Fehler vorhanden!") -> Es sind noch Fehler vorhanden!
B44: Soll | C44: Konto | D44: € | E44: Haben | F44: Konto | G44: €
A45: Buchungssatz | C45: =IF(B45="","",VLOOKUP(B45,Kontenplan!$A$4:$B$38,2)) ->  | F45: =IF(E45="","",VLOOKUP(E45,Kontenplan!$A$4:$B$38,2)) -> 
A48: 7. | B48: Zieleinkauf von Garnen, | E48: 330 | F48: =IF(AND(B52="2020",E52="4400"),"Die Konten sind richtig!","Mindestens ein Konto ist falsch!") -> Mindestens ein Konto ist falsch!
A49: Geschäftsvorfall | F49: =IF(AND(D52=E48,G52=E48),"Die Beträge sind richtig!","Mindestens ein Betrag ist falsch!") -> Mindestens ein Betrag ist falsch!
F50: =IF(AND(F48="Die Konten sind richtig!",F49="Die Beträge sind richtig!"),"Alles richtig!","Es sind noch Fehler vorhanden!") -> Es sind noch Fehler vorhanden!
B51: Soll | C51: Konto | D51: € | E51: Haben | F51: Konto | G51: €
A52: Buchungssatz | C52: =IF(B52="","",VLOOKUP(B52,Kontenplan!$A$4:$B$38,2)) ->  | F52: =IF(E52="","",VLOOKUP(E52,Kontenplan!$A$4:$B$38,2)) -> 
A55: 8. | B55: Barverkauf von T-Shirts, | E55: 2250 | F55: =IF(AND(B59="2880",E59="5000"),"Die Konten sind richtig!","Mindestens ein Konto ist falsch!") -> Mindestens ein Konto ist falsch!
A56: Geschäftsvorfall | F56: =IF(AND(D59=E55,G59=E55),"Die Beträge sind richtig!","Mindestens ein Betrag ist falsch!") -> Mindestens ein Betrag ist falsch!
F57: =IF(AND(F55="Die Konten sind richtig!",F56="Die Beträge sind richtig!"),"Alles richtig!","Es sind noch Fehler vorhanden!") -> Es sind noch Fehler vorhanden!
B58: Soll | C58: Konto | D58: € | E58: Haben | F58: Konto | G58: €
A59: Buchungssatz | C59: =IF(B59="","",VLOOKUP(B59,Kontenplan!$A$4:$B$38,2)) ->  | F59: =IF(E59="","",VLOOKUP(E59,Kontenplan!$A$4:$B$38,2)) -> 
A62: 9. | B62: Bankgutschrift für - Zinsen | E62: 450 | F62: =IF(AND(B66="2800",E67="5400",E66="5710"),"Die Konten sind richtig!","Mindestens ein Konto ist falsch!") -> Mindestens ein Konto ist falsch!
A63: Geschäftsvorfall | C63: - vermietete Lagerräume | E63: 2400 | F63: =IF(AND(D66=E64,G66=E62,G67=E63),"Die Beträge sind richtig!","Mindestens ein Betrag ist falsch!") -> Mindestens ein Betrag ist falsch!
C64: Bankguschrift | E64: =SUM(E62:E63) -> 2850 | F64: =IF(AND(F62="Die Konten sind richtig!",F63="Die Beträge sind richtig!"),"Alles richtig!","Es sind noch Fehler vorhanden!") -> Es sind noch Fehler vorhanden!
B65: Soll | C65: Konto | D65: € | E65: Haben | F65: Konto | G65: €
A66: Buchungssatz | C66: =IF(B66="","",VLOOKUP(B66,Kontenplan!$A$4:$B$38,2)) ->  | F66: =IF(E66="","",VLOOKUP(E66,Kontenplan!$A$4:$B$38,2)) -> 
C67: =IF(B67="","",VLOOKUP(B67,Kontenplan!$A$4:$B$38,2)) ->  | F67: =IF(E67="","",VLOOKUP(E67,Kontenplan!$A$4:$B$38,2)) -> 
A69: 10. | B69: Banklastschrift für Kontoführung, | E69: 45 | F69: =IF(AND(B73="6750",E73="2800"),"Die Konten sind richtig!","Mindestens ein Konto ist falsch!") -> Mindestens ein Konto ist falsch!
A70: Geschäftsvorfall | F70: =IF(AND(D73=E69,G73=E69),"Die Beträge sind richtig!","Mindestens ein Betrag ist falsch!") -> Mindestens ein Betrag ist falsch!
F71: =IF(AND(F69="Die Konten sind richtig!",F70="Die Beträge sind richtig!"),"Alles richtig!","Es sind noch Fehler vorhanden!") -> Es sind noch Fehler vorhanden!
B72: Soll | C72: Konto | D72: € | E72: Haben | F72: Konto | G72: €
A73: Buchungssatz | C73: =IF(B73="","",VLOOKUP(B73,Kontenplan!$A$4:$B$38,2)) ->  | F73: =IF(E73="","",VLOOKUP(E73,Kontenplan!$A$4:$B$38,2)) -> 
A76: 11. | B76: Verkauf von Jeans und Jeansjacken auf Ziel, | E76: 25500 | F76: =IF(AND(B80="2400",E80="5000"),"Die Konten sind richtig!","Mindestens ein Konto ist falsch!") -> Mindestens ein Konto ist falsch!
A77: Geschäftsvorfall | F77: =IF(AND(D80=E76,G80=E76),"Die Beträge sind richtig!","Mindestens ein Betrag ist falsch!") -> Mindestens ein Betrag ist falsch!
F78: =IF(AND(F76="Die Konten sind richtig!",F77="Die Beträge sind richtig!"),"Alles richtig!","Es sind noch Fehler vorhanden!") -> Es sind noch Fehler vorhanden!
B79: Soll | C79: Konto | D79: € | E79: Haben | F79: Konto | G79: €
A80: Buchungssatz | C80: =IF(B80="","",VLOOKUP(B80,Kontenplan!$A$4:$B$38,2)) ->  | F80: =IF(E80="","",VLOOKUP(E80,Kontenplan!$A$4:$B$38,2)) -> 
A83: 12. | B83: Barverkauf eines gebrauchten Schreibtisches, | E83: 120 | F83: =IF(AND(B87="2880",E87="0800"),"Die Konten sind richtig!","Mindestens ein Konto ist falsch!") -> Mindestens ein Konto ist falsch!
A84: Geschäftsvorfall | F84: =IF(AND(D87=E83,G87=E83),"Die Beträge sind richtig!","Mindestens ein Betrag ist falsch!") -> Mindestens ein Betrag ist falsch!
F85: =IF(AND(F83="Die Konten sind richtig!",F84="Die Beträge sind richtig!"),"Alles richtig!","Es sind noch Fehler vorhanden!") -> Es sind noch Fehler vorhanden!
B86: Soll | C86: Konto | D86: € | E86: Haben | F86: Konto | G86: €
A87: Buchungssatz | C87: =IF(B87="","",VLOOKUP(B87,Kontenplan!$A$4:$B$38,2)) ->  | F87: =IF(E87="","",VLOOKUP(E87,Kontenplan!$A$4:$B$38,2)) -> 
A90: 13. | B90: Verbrauch lt. Materialentnahmescheine für | F90: =IF(AND(B95="6000",E95="2000",B96="6020",E96="2020",B97="6030",E97="2030"),"Die Konten sind richtig!","Mindestens ein Konto ist falsch!") -> Mindestens ein Konto ist falsch!
A91: Geschäftsvorfall | C91: - Baumwolle | E91: 3300
C92: - Nieten | E92: 130 | F92: =IF(AND(D95=E91,D96=E92,D97=E93,G95=E91,G96=E92,G97=E93),"Die Beträge sind richtig!","Mindestens ein Betrag ist falsch!") -> Mindestens ein Betrag ist falsch!
C93: - Schmierstoffe | E93: 150 | F93: =IF(AND(F90="Die Konten sind richtig!",F92="Die Beträge sind richtig!"),"Alles richtig!","Es sind noch Fehler vorhanden!") -> Es sind noch Fehler vorhanden!
B94: Soll | C94: Konto | D94: € | E94: Haben | F94: Konto | G94: €
A95: Buchungssatz | C95: =IF(B95="","",VLOOKUP(B95,Kontenplan!$A$4:$B$38,2)) ->  | F95: =IF(E95="","",VLOOKUP(E95,Kontenplan!$A$4:$B$38,2)) -> 
C96: =IF(B96="","",VLOOKUP(B96,Kontenplan!$A$4:$B$38,2)) ->  | F96: =IF(E96="","",VLOOKUP(E96,Kontenplan!$A$4:$B$38,2)) -> 
C97: =IF(B97="","",VLOOKUP(B97,Kontenplan!$A$4:$B$38,2)) ->  | F97: =IF(E97="","",VLOOKUP(E97,Kontenplan!$A$4:$B$38,2)) -> 
A99: 14. | B99: Bankgutschrift für unsere Ausgangsrechnung an Paolo Russo Jeans, | E99: 2250 | F99: =IF(AND(B103="2800",E103="2400"),"Die Konten sind richtig!","Mindestens ein Konto ist falsch!") -> Mindestens ein Konto ist falsch!
A100: Geschäftsvorfall | F100: =IF(AND(D103=E99,G103=E99),"Die Beträge sind richtig!","Mindestens ein Betrag ist falsch!") -> Mindestens ein Betrag ist falsch!
F101: =IF(AND(F99="Die Konten sind richtig!",F100="Die Beträge sind richtig!"),"Alles richtig!","Es sind noch Fehler vorhanden!") -> Es sind noch Fehler vorhanden!
B102: Soll | C102: Konto | D102: € | E102: Haben | F102: Konto | G102: €
A103: Buchungssatz | C103: =IF(B103="","",VLOOKUP(B103,Kontenplan!$A$4:$B$38,2)) ->  | F103: =IF(E103="","",VLOOKUP(E103,Kontenplan!$A$4:$B$38,2)) -> 
A106: 15. | B106: Banklastschrift für - Kfz-Steuern | E106: 320 | F106: =IF(AND(B110="7000",B111="6900",E110="2800"),"Die Konten sind richtig!","Mindestens ein Konto ist falsch!") -> Mindestens ein Konto ist falsch!
A107: Geschäftsvorfall | C107: - Feuerversicherung | E107: 270 | F107: =IF(AND(D110=E106,D111=E107,G110=E108),"Die Beträge sind richtig!","Mindestens ein Betrag ist falsch!") -> Mindestens ein Betrag ist falsch!
C108: Banklastschrift | E108: =SUM(E106:E107) -> 590 | F108: =IF(AND(F106="Die Konten sind richtig!",F107="Die Beträge sind richtig!"),"Alles richtig!","Es sind noch Fehler vorhanden!") -> Es sind noch Fehler vorhanden!
B109: Soll | C109: Konto | D109: € | E109: Haben | F109: Konto | G109: €
A110: Buchungssatz | C110: =IF(B110="","",VLOOKUP(B110,Kontenplan!$A$4:$B$38,2)) ->  | F110: =IF(E110="","",VLOOKUP(E110,Kontenplan!$A$4:$B$38,2)) -> 
C111: =IF(B111="","",VLOOKUP(B111,Kontenplan!$A$4:$B$38,2)) -> 
A113: 16. | B113: Banklastschrift für Eingangsrechnung der Faden GmbH, | E113: 1750 | F113: =IF(AND(B117="4400",E117="2800"),"Die Konten sind richtig!","Mindestens ein Konto ist falsch!") -> Mindestens ein Konto ist falsch!
A114: Geschäftsvorfall | F114: =IF(AND(D117=E113,G117=E113),"Die Beträge sind richtig!","Mindestens ein Betrag ist falsch!") -> Mindestens ein Betrag ist falsch!
F115: =IF(AND(F113="Die Konten sind richtig!",F114="Die Beträge sind richtig!"),"Alles richtig!","Es sind noch Fehler vorhanden!") -> Es sind noch Fehler vorhanden!
B116: Soll | C116: Konto | D116: € | E116: Haben | F116: Konto | G116: €
A117: Buchungssatz | C117: =IF(B117="","",VLOOKUP(B117,Kontenplan!$A$4:$B$38,2)) ->  | F117: =IF(E117="","",VLOOKUP(E117,Kontenplan!$A$4:$B$38,2)) -> 
A120: 17. | B120: Barzahlung für die Bewirtung der Gäste bei einer Betriebsbesichtigung | E120: 430 | F120: =IF(AND(B124="6860",E124="2880"),"Die Konten sind richtig!","Mindestens ein Konto ist falsch!") -> Mindestens ein Konto ist falsch!
A121: Geschäftsvorfall | F121: =IF(AND(D124=E120,G124=E120),"Die Beträge sind richtig!","Mindestens ein Betrag ist falsch!") -> Mindestens ein Betrag ist falsch!
F122: =IF(AND(F120="Die Konten sind richtig!",F121="Die Beträge sind richtig!"),"Alles richtig!","Es sind noch Fehler vorhanden!") -> Es sind noch Fehler vorhanden!
B123: Soll | C123: Konto | D123: € | E123: Haben | F123: Konto | G123: €
A124: Buchungssatz | C124: =IF(B124="","",VLOOKUP(B124,Kontenplan!$A$4:$B$38,2)) ->  | F124: =IF(E124="","",VLOOKUP(E124,Kontenplan!$A$4:$B$38,2)) -> 
A128: =IF(AND(F8="Alles richtig!",F15="Alles richtig!",F22="Alles richtig!",F29="Alles richtig!",F36="Alles richtig!",F43="Alles richtig!",F50="Alles richtig!",F57="Alles richtig!",F64="Alles richtig!",F71="Alles richtig!",F78="Alles richtig!",F85="Alles richtig!",F93="Alles richtig!",F101="Alles richtig!",F108="Alles richtig!",F115="Alles richtig!",F122="Alles richtig!"),"Super gebucht, die Aufgabe ist gelöst!","Bilden Sie alle Buchungssätze!") -> Bilden Sie alle Buchungssätze!

Sheet Hauptbuch
A1: Hauptbuch
A3: Soll | B3: 0510 Bebaute Grundstücke | J3: Haben
A4: AB | B4: 8000 | E4: =Bilanzbuch!C4 -> 250000 | F4: SB | G4: 8010 | J4: =E4 -> 250000
A6: Soll | B6: 0700 Technische Anlagen und Maschinen | J6: Haben
A7: AB | B7: 8000 | E7: =Bilanzbuch!C5 -> 180000 | F7: SB | G7: 8010 | J7: =E7 -> 180000
A9: Soll | B9: 0800 Betriebs- und Geschäftsausstattung | J9: Haben
A10: AB | B10: 8000 | E10: =Bilanzbuch!C7 -> 43600 | F10: 12. | G10: 2880 | J10: =Grundbuch!G87 -> 0
A11: 1. | B11: 2800 | E11: =Grundbuch!D10 -> 0 | F11: SB | G11: 8010 | J11: =J12-J10 -> 43600
E12: =SUM(E10:E11) -> 43600 | J12: =E12 -> 43600
A14: Soll | B14: 0840 Fuhrpark | J14: Haben
A15: AB | B15: 8000 | E15: =Bilanzbuch!C6 -> 68000 | F15: SB | G15: 8010 | J15: =E15 -> 68000
A17: Soll | B17: 2000 Rohstoffe | J17: Haben
A18: AB | B18: 8000 | E18: =Bilanzbuch!C8 -> 180000 | F18: 13. | G18: 6000 | J18: =Grundbuch!G95 -> 0
F19: SB | G19: 8010 | J19: =J20-J18 -> 180000
E20: =SUM(E18:E19) -> 180000 | J20: =E20 -> 180000
A22: Soll | B22: 2020 Hilfsstoffe | J22: Haben
A23: AB | B23: 8000 | E23: =Bilanzbuch!C9 -> 12500 | F23: 13. | G23: 6020 | J23: =Grundbuch!G96 -> 0
A24: 7. | B24: 4400 | E24: =Grundbuch!D52 -> 0 | F24: SB | G24: 8010 | J24: =J25-J23 -> 12500
E25: =SUM(E23:E24) -> 12500 | J25: =E25 -> 12500
A27: Soll | B27: 2030 Betriebsstoffe | J27: Haben
A28: AB | B28: 8000 | E28: =Bilanzbuch!C10 -> 3500 | F28: 13. | G28: 6030 | J28: =Grundbuch!G97 -> 0
F29: SB | G29: 8010 | J29: =J30-J28 -> 3500
E30: =SUM(E28:E29) -> 3500 | J30: =E30 -> 3500
A32: Soll | B32: 2100 Unfertige Erzeugnisse | J32: Haben
A33: AB | B33: 8000 | E33: =Bilanzbuch!C11 -> 16700 | F33: SB | J33: =E33 -> 16700
A35: Soll | B35: 2200 Fertige Erzeugnisse | J35: Haben
A36: AB | B36: 8000 | E36: =Bilanzbuch!C12 -> 24300 | F36: SB | J36: =E36 -> 24300
A38: Soll | B38: 2400 Forderungen aus Lieferungen und Leistungen | J38: Haben
A39: AB | B39: 8000 | E39: =Bilanzbuch!C13 -> 39800 | F39: 14. | G39: 2800 | J39: =Grundbuch!G103 -> 0
A40: 11. | B40: 5000 | E40: =Grundbuch!D80 -> 0 | F40: SB | G40: 8010 | J40: =J41-J39 -> 39800
E41: =SUM(E39:E40) -> 39800 | J41: =E41 -> 39800
A43: Soll | B43: 2800 Kreditinstitute/Bank | J43: Haben
A44: AB | B44: 8000 | E44: =Bilanzbuch!C14 -> 71200 | F44: 1. | G44: 0800 | J44: =Grundbuch!G10 -> 0
A45: 3. | B45: 5410 | E45: =Grundbuch!D24 -> 0 | F45: 2. | G45: 6200 | H45: 6300 | J45: =Grundbuch!G17 -> 0
A46: 9. | B46: 5710 | C46: 5400 | E46: =Grundbuch!D66 -> 0 | F46: 6. | G46: 7510 | J46: =Grundbuch!G45 -> 0
A47: 14. | B47: 2400 | E47: =Grundbuch!D103 -> 0 | F47: 10. | G47: 6750 | J47: =Grundbuch!G73 -> 0
F48: 15. | G48: 7000 | H48: 6900 | J48: =Grundbuch!G110 -> 0
F49: 16. | G49: 4400 | J49: =Grundbuch!G117 -> 0
F50: SB | G50: 8010 | J50: =J51-SUM(J44:J49) -> 71200
E51: =SUM(E44:E50) -> 71200 | J51: =E51 -> 71200
A53: Soll | B53: 2880 Kasse | J53: Haben
A54: AB | B54: 8000 | E54: =Bilanzbuch!C15 -> 4790 | F54: 4. | G54: 6160 | J54: =Grundbuch!G31 -> 0
A55: 8. | B55: 5000 | E55: =Grundbuch!D59 -> 0 | F55: 6. | G55: 6800 | J55: =Grundbuch!G38 -> 0
A56: 12. | B56: 0800 | E56: =Grundbuch!D87 -> 0 | F56: 17. | G56: 6860 | J56: =Grundbuch!G124 -> 0
F57: SB | G57: 8010 | J57: =J58-SUM(J54:J56) -> 4790
E58: =SUM(E54:E57) -> 4790 | J58: =E58 -> 4790
A60: Soll | B60: 3000 Eigenkapital | J60: Haben
A61: A | B61: 8020 | E61: =IF(GuV!F16>0,GuV!F16,0) -> 0 | F61: AB | G61: 8000 | J61: =Bilanzbuch!F4 -> 416490
A62: SB | B62: 8010 | E62: =E63-E61 -> 416490 | F62: A | G62: 8020 | J62: =IF(GuV!C16>0,GuV!C16,0) -> 0
E63: =J63 -> 416490 | J63: =SUM(J61:J62) -> 416490
A65: Soll | B65: 4200 Verbindlichkeiten gegenüber Kreditinsituten | J65: Haben
A66: SB | B66: 8000 | E66: =Bilanzbuch!F5 -> 410000 | F66: AB | G66: 8000 | J66: =Bilanzbuch!F5 -> 410000
A68: Soll | B68: 4400 Verbindlichkeiten aus Lieferungen und Leistungen | J68: Haben
A69: 16. | B69: 2800 | E69: =Grundbuch!D117 -> 0 | F69: AB | G69: 8000 | J69: =Bilanzbuch!F6 -> 67900
A70: SB | B70: 8010 | E70: =E71-E69 -> 67900 | F70: 7. | G70: 2020 | J70: =Grundbuch!G52 -> 0
E71: =J71 -> 67900 | J71: =SUM(J69:J70) -> 67900
A73: Soll | B73: 5000 Umsatzerlöse | J73: Haben
A74: A | B74: 8020 | E74: =E76 -> 0 | F74: 8. | G74: 2880 | J74: =Grundbuch!G59 -> 0
F75: 11. | G75: 2400 | J75: =Grundbuch!G80 -> 0
E76: =J76 -> 0 | J76: =SUM(J74:J75) -> 0
A78: Soll | B78: 5400 Mieterträge | J78: Haben
A79: A | B79: 8020 | E79: =J79 -> 0 | F79: 9. | G79: 2800 | J79: =Grundbuch!G67 -> 0
A81: Soll | B81: 5410 Sonstige Erlöse (Provisionen) | J81: Haben
A82: A | B82: 8020 | E82: =J82 -> 0 | F82: 3. | G82: 2800 | J82: =Grundbuch!G24 -> 0
A84: Soll | B84: 5710 Zinserträge | J84: Haben
A85: A | B85: 8020 | E85: =J85 -> 0 | F85: 9. | G85: 2800 | J85: =Grundbuch!G66 -> 0
A87: Soll | B87: 6000 Aufwendungen für Rohstoffe | J87: Haben
A88: 13. | B88: 2000 | E88: =Grundbuch!D95 -> 0 | F88: A | G88: 8020 | J88: =E88 -> 0
A90: Soll | B90: 6020 Aufwendungen für Hilfsstoffe | J90: Haben
A91: 13. | B91: 2020 | E91: =Grundbuch!D96 -> 0 | F91: A | G91: 8020 | J91: =E91 -> 0
A93: Soll | B93: 6030 Aufwendungen für Betriebsstoffe | J93: Haben
A94: 13. | B94: 2030 | E94: =Grundbuch!D97 -> 0 | F94: A | G94: 8020 | J94: =E94 -> 0
A96: Soll | B96: 6160 Fremdinstandhaltung | J96: Haben
A97: 4. | B97: 2880 | E97: =Grundbuch!D31 -> 0 | F97: A | G97: 8020 | J97: =E97 -> 0
A99: Soll | B99: 6200 Löhne | J99: Haben
A100: 2. | B100: 2800 | E100: =Grundbuch!D17 -> 0 | F100: A | G100: 8020 | J100: =E100 -> 0
A102: Soll | B102: 6300 Gehälter | J102: Haben
A103: 2. | B103: 2800 | E103: =Grundbuch!D18 -> 0 | F103: A | G103: 8020 | J103: =E103 -> 0
A105: Soll | B105: 6750 Kosten des Geldverkehrs | J105: Haben
A106: 10. | B106: 2800 | E106: =Grundbuch!D73 -> 0 | F106: A | G106: 8020 | J106: =E106 -> 0
A108: Soll | B108: 6800 Büromaterial | J108: Haben
A109: 5. | B109: 2880 | E109: =Grundbuch!D38 -> 0 | F109: A | G109: 8020 | J109: =E109 -> 0
A111: Soll | B111: 6860 Bewirtung und Präsentation | J111: Haben
A112: 17. | B112: 2880 | E112: =Grundbuch!D124 -> 0 | F112: A | G112: 8020 | J112: =E112 -> 0
A114: Soll | B114: 6900 Versicherungsbeiträge | J114: Haben
A115: 15. | B115: 2800 | E115: =Grundbuch!D111 -> 0 | F115: A | G115: 8020 | J115: =E115 -> 0
A117: Soll | B117: 7000 Betriebliche Steuern | J117: Haben
A118: 15. | B118: 2800 | E118: =Grundbuch!D110 -> 0 | F118: A | G118: 8020 | J118: =E118 -> 0
A120: Soll | B120: 7510 Zinsaufwendungen | J120: Haben
A121: 6. | B121: 2800 | E121: =Grundbuch!D45 -> 0 | F121: A | G121: 8020 | J121: =J123 -> 0
E123: =SUM(E121:E122) -> 0 | J123: =E123 -> 0

Sheet GuV
A1: Gewinn- und Verlustrechnung
A3: Soll | B3: 8020 Gewinn und Verlust | F3: Haben
A4: 6000 | B4: Aufwendungen für Rohstoffe | C4: =Hauptbuch!J88 -> 0 | D4: 5000 | E4: Umsatzerlöse | F4: =Hauptbuch!E74 -> 0
A5: 6020 | B5: Aufwendungen für Hilfsstoffe | C5: =Hauptbuch!E91 -> 0 | D5: 5400 | E5: Mieterträge | F5: =Hauptbuch!E79 -> 0
A6: 6030 | B6: Aufwendungen für Betriebsstoffe | C6: =Hauptbuch!J94 -> 0 | D6: 5410 | E6: Sonstige Erlöse (Provisionen) | F6: =Hauptbuch!E82 -> 0
A7: 6160 | B7: Fremdinstandhaltung | C7: =Hauptbuch!J97 -> 0 | D7: 5710 | E7: Zinserträge | F7: =Hauptbuch!E85 -> 0
A8: 6200 | B8: Löhne | C8: =Hauptbuch!J100 -> 0
A9: 6300 | B9: Gehälter | C9: =Hauptbuch!J103 -> 0
A10: 6750 | B10: Kosten des Geldverkehrs | C10: =Hauptbuch!J106 -> 0
A11: 6800 | B11: Büromaterial | C11: =Hauptbuch!J109 -> 0
A12: 6860 | B12: Bewirtung und Präsentation | C12: =Hauptbuch!J112 -> 0
A13: 6900 | B13: Versicherungsbeiträge | C13: =Hauptbuch!J115 -> 0
A14: 7000 | B14: Betriebliche Steuern | C14: =Hauptbuch!J118 -> 0
A15: 7510 | B15: Zinsaufwendungen | C15: =Hauptbuch!J121 -> 0
A16: =IF(SUM($F$4:$F$7)>SUM($C$4:$C$15),"3000","") ->  | B16: =IF(SUM($F$4:$F$7)>SUM($C$4:$C$15),"Eigenkapital","") ->  | C16: =IF(SUM($F$4:$F$7)>SUM($C$4:$C$15),SUM($F$4:$F$7)-SUM($C$4:$C$15),0) -> 0 | D16: =IF(SUM($F$4:$F$7)<SUM($C$4:$C$15),"3000","") ->  | E16: =IF(SUM($F$4:$F$7)<SUM($C$4:$C$15),"Eigenkapital","") ->  | F16: =IF(SUM($F$4:$F$7)<SUM($C$4:$C$15),SUM($C$4:$C$15)-SUM($F$4:$F$7),0) -> 0
C17: =IF(SUM($F$4:$F$7)>SUM($C$4:$C$15),SUM($F$4:$F$7),SUM($C$4:$C$15)) -> 0 | F17: =IF(SUM($F$4:$F$7)>SUM($C$4:$C$15),SUM($F$4:$F$7),SUM($C$4:$C$15)) -> 0

Sheet Bilanzbuch
A1: Bilanzbuch
A3: Aktiva | B3: 8000 Eröffnungsbilanz | F3: Passiva
A4: 0510 | B4: Bebaute Grundstücke | C4: 250000 | D4: 3000 | E4: Eigenkapital | F4: =F16-SUM(F5:F15) -> 416490
A5: 0700 | B5: Technische Anlagen und Maschinen | C5: 180000 | D5: 4200 | E5: Verbindlichkeiten g. Kreditinstituten | F5: 410000
A6: 0840 | B6: Fuhrpark | C6: 68000 | D6: 4400 | E6: Verbindlichkeiten a.L.u.L. | F6: 67900
A7: 0800 | B7: Betriebs- und Geschäftsausstattung | C7: 43600
A8: 2000 | B8: Rohstoffe | C8: 180000
A9: 2020 | B9: Hilfsstoffe | C9: 12500
A10: 2040 | B10: Betriebsstoffe | C10: 3500
A11: 2100 | B11: Unfertige Erzeugnisse | C11: 16700
A12: 2200 | B12: Fertige Erzeugnisse | C12: 24300
A13: 2400 | B13: Forderungen a.L.u.L. | C13: 39800
A14: 2800 | B14: Bank | C14: 71200
A15: 2880 | B15: Kasse | C15: 4790
C16: =SUM(C4:C15) -> 894390 | F16: =C16 -> 894390
A18: Aktiva | B18: 8010 Schlussbilanz | F18: Passiva
A19: 0510 | B19: Bebaute Grundstücke | C19: =Hauptbuch!J4 -> 250000 | D19: 3000 | E19: Eigenkapital | F19: =Hauptbuch!E62 -> 416490
A20: 0700 | B20: Technische Anlagen und Maschinen | C20: =Hauptbuch!J7 -> 180000 | D20: 4200 | E20: Verbindlichkeiten g. Kreditinstituten | F20: =Hauptbuch!E66 -> 410000
A21: 0800 | B21: Betriebs- und Geschäftsausstattung | C21: =Hauptbuch!J11 -> 43600 | D21: 4400 | E21: Verbindlichkeiten a.L.u.L. | F21: =Hauptbuch!E70 -> 67900
A22: 0840 | B22: Fuhrpark | C22: =Hauptbuch!J15 -> 68000
A23: 2000 | B23: Rohstoffe | C23: =Hauptbuch!J19 -> 180000
A24: 2020 | B24: Hilfsstoffe | C24: =Hauptbuch!J24 -> 12500
A25: 2040 | B25: Betriebsstoffe | C25: =Hauptbuch!J29 -> 3500
A26: 2100 | B26: Unfertige Erzeugnisse | C26: =Hauptbuch!J33 -> 16700
A27: 2200 | B27: Fertige Erzeugnisse | C27: =Hauptbuch!J36 -> 24300
A28: 2400 | B28: Forderungen a.L.u.L. | C28: =Hauptbuch!J40 -> 39800
A29: 2800 | B29: Bank | C29: =Hauptbuch!J50 -> 71200
A30: 2880 | B30: Kasse | C30: =Hauptbuch!J57 -> 4790
C31: =SUM(C19:C30) -> 894390 | F31: =SUM(F19:F30) -> 894390

Sheet Kontenplan
B1: Kontenplan
A3: Nr. | B3: Konto
A4: 0510 | B4: Bebaute Grundstücke
A5: 0700 | B5: Technische Anlagen und Maschinen
A6: 0800 | B6: Betriebs- und Geschäftsausstattung
A7: 0840 | B7: Fuhrpark
A8: 2000 | B8: Rohstoffe
A9: 2020 | B9: Hilfsstoffe
A10: 2030 | B10: Betriebsstoffe
A11: 2040 | B11: Betriebsstoffe
A12: 2100 | B12: Unfertige Erzeugnisse
A13: 2200 | B13: Fertige Erzeugnisse
A14: 2400 | B14: Forderungen a.L.u.L.
A15: 2800 | B15: Kreditinstitute/Bank
A16: 2880 | B16: Kasse
A17: 3000 | B17: Eigenkapital
A18: 4200 | B18: Verbindlichkeiten g. Kreditinstituten
A19: 4400 | B19: Verbindlichkeiten a.L.u.L.
A20: 5000 | B20: Umsatzerlöse
A21: 5400 | B21: Mieterträge
A22: 5410 | B22: Sonstige Erlöse (Provisionen)
A23: 5710 | B23: Zinserträge
A24: 6000 | B24: Aufwendungen für Rohstoffe
A25: 6020 | B25: Aufwendungen für Hilfsstoffe
A26: 6030 | B26: Aufwendungen für Betriebsstoffe
A27: 6160 | B27: Fremdinstandhaltung
A28: 6200 | B28: Löhne
A29: 6300 | B29: Gehälter
A30: 6750 | B30: Kosten des Geldverkehrs
A31: 6800 | B31: Büromaterial
A32: 6860 | B32: Bewirtung und Präsentation
A33: 6900 | B33: Versicherungsbeiträge
A34: 7000 | B34: Betriebliche Steuern
A35: 7510 | B35: Zinsaufwendungen
A36: 8000 | B36: Eröffnungsbilanz
A37: 8010 | B37: Schlussbilanz
A38: 8020 | B38: Gewinn und Verlust
